bitfinex/quotes_ETHUSD_20251118
["timestamp","ask_amount","ask_price","bid_price","bid_amount"]
[1763447822537,0.289,2994.4,2994.1,0.001]
[1763447822743,0.4943,2994.2,2994.1,0.001]
[1763447823237,1.50558174,2994.2,2994.1,0.001]
[1763447823440,1.79458174,2994.2,2994.1,0.001]
[1763447823696,1.79458174,2994.2,2993.5,0.001]
[1763447823992,0.289,2994.1,2993.5,0.001]
[1763447824208,0.52498174,2994.2,2993.5,0.26067609]
[1763447824341,0.289,2994.1,2993.6,2.39796092]
[1763447824540,0.289,2994.0,2993.6,2.59576092]
[1763447824751,0.52498174,2994.2,2993.6,2.59576092]
[1763447825179,0.52498174,2994.2,2993.6,2.39796092]
[1763447825352,0.1907,2995.3,2994.2,9.14092576]
[1763447825551,0.1907,2995.3,2994.5,0.1978]
[1763447825738,0.1907,2995.3,2994.3,3.30495356]
[1763447825739,0.4863,2995.2,2994.3,3.30495356]
[1763447825938,0.289,2995.1,2994.3,2.39796092]
[1763447826144,0.289,2995.1,2994.1,2.39796092]
[1763447826346,0.4787,2995.0,2994.2,0.23979609]
[1763447826575,0.1907,2995.3,2994.2,0.23979609]
[1763447826576,0.289,2994.9,2994.3,0.03339678]
[1763447826776,0.289,2994.9,2994.2,0.23979609]
[1763447827080,0.6694,2995.3,2994.3,0.03339678]
[1763447827292,0.289,2994.8,2994.2,2.63775701]
[1763447827445,0.4787,2995.2,2994.3,0.2835557]
[1763447827645,0.289,2995.1,2994.3,0.2835557]
[1763447828094,0.4787,2995.0,2994.3,0.2835557]
[1763447828381,0.4692,2994.4,2993.9,2.39796092]
[1763447828692,0.289,2994.3,2993.9,2.43136216]
[1763447828848,0.289,2994.2,2993.9,2.39796092]
[1763447829368,0.289,2994.2,2993.9,0.03340124]
[1763447829568,0.289,2994.1,2993.7,2.66382462]
[1763447829879,0.4787,2994.4,2993.8,0.33217484]
[1763447830097,0.289,2994.3,2993.8,0.33217484]
[1763447830672,0.4787,2994.7,2993.8,1.23916748]
[1763447830853,0.289,2994.2,2994.0,2.39796092]
[1763447831081,1.206,2994.1,2993.8,2.73013576]
[1763447831262,2.412,2994.1,2993.8,0.33217484]
[1763447831583,2.412,2994.1,2993.6,0.65792377]
[1763447831584,0.6612,2993.9,2993.6,0.65792377]
[1763447831880,0.6612,2993.9,2993.5,0.001]
[1763447832082,1.1399,2993.9,2993.5,0.001]
[1763447832248,0.4692,2993.6,2993.5,0.001]
[1763447832448,0.7582,2993.6,2993.5,0.001]
[1763447832660,1.2369,2993.6,2993.5,0.001]
[1763447834394,0.289,2993.6,2993.5,0.001]
[1763447834701,1.2369,2993.6,2993.5,0.001]
[1763447835399,0.7582,2993.6,2993.5,0.001]
[1763447835696,1.2369,2993.6,2993.5,0.001]
[1763447836794,0.7582,2993.6,2993.5,0.001]
[1763447837159,0.289,2993.6,2993.5,0.001]
[1763447837596,0.002,2994.2,2993.5,0.3966]
[1763447837793,0.289,2994.1,2993.5,0.001]
[1763447838099,0.4692,2993.6,2993.5,0.001]
[1763447838393,0.7582,2993.6,2993.5,0.001]
[1763447838594,1.2369,2993.6,2993.5,0.001]
[1763447838796,1.76194162,2993.6,2993.5,0.001]
[1763447839179,1.2369,2993.6,2993.5,0.001]
[1763447841108,3.6489,2993.6,2992.1,0.09083496]
[1763447841404,1.42201441,2993.5,2992.2,0.24887959]
[1763447841606,1.42201441,2993.5,2992.1,0.09083496]
[1763447841774,0.4735,2993.4,2992.1,0.09083496]
[1763447842095,0.52517652,2993.2,2992.1,0.09083496]
[1763447842295,0.33052177,2993.1,2992.1,0.09083496]
[1763447842459,0.80402177,2993.1,2992.1,0.09083496]
[1763447842867,0.4735,2993.0,2992.1,0.09083496]
[1763447843385,0.489,2992.2,2992.1,0.09083496]
[1763447843687,0.778,2992.2,2992.1,0.09083496]
[1763447843994,1.2515,2992.2,2992.1,0.09083496]
[1763447844600,1.29302177,2992.2,2991.9,0.00287301]
[1763447844784,9.62992576,2992.0,2990.9,0.17485276]
[1763447844986,0.4735,2992.4,2991.0,0.03343363]
[1763447845230,0.1966,2991.9,2991.0,0.2925]
[1763447845521,0.289,2991.8,2990.9,0.17485276]
[1763447845681,0.1966,2992.1,2991.0,0.32593363]
[1763447845882,0.289,2992.0,2990.9,0.17485276]
[1763447846079,0.1966,2992.1,2991.0,0.28653137]
[1763447846080,0.289,2991.9,2991.0,0.28653137]
[1763447846383,0.289,2991.8,2991.0,0.28653137]
[1763447846687,0.289,2991.7,2991.1,0.1392]
[1763447847415,0.4735,2992.0,2991.1,0.1392]
[1763447847416,0.289,2991.6,2991.1,0.1392]
[1763447847719,0.289,2991.5,2991.2,0.1392]
[1763447847924,0.4735,2992.0,2990.5,2.39796092]
[1763447847925,0.289,2991.4,2990.8,0.2925]
[1763447848091,0.289,2991.4,2990.5,2.39796092]
[1763447848092,0.289,2991.3,2990.5,0.2925]
[1763447848294,0.289,2991.3,2990.5,0.56154609]
[1763447848637,0.289,2991.2,2990.5,0.26904609]
[1763447848787,0.289,2991.2,2990.1,2.69046092]
[1763447848986,0.4735,2991.4,2990.1,2.72390461]
[1763447849222,0.1966,2992.1,2991.3,0.4317]
[1763447849421,0.289,2992.0,2991.3,0.4317]
[1763447849609,0.7625,2992.0,2990.7,0.2925]
[1763447849809,0.7625,2992.0,2991.1,0.1392]
[1763447850110,0.4735,2991.9,2991.1,0.1392]
[1763447850310,0.4735,2991.9,2990.2,0.32594257]
[1763447850513,0.4735,2991.9,2990.3,1.25240589]
[1763447850514,0.04152177,2991.8,2990.3,1.25240589]
[1763447850704,0.4735,2991.9,2990.2,0.2925]
[1763447850901,0.4735,2991.8,2990.2,0.2925]
[1763447851093,0.405504,2991.6,2990.1,0.65922963]
[1763447851297,2.703,2991.5,2990.2,0.03344257]
[1763447851509,2.703,2991.5,2990.0,0.2925]
[1763447851712,0.52538469,2991.2,2990.0,0.2925]
[1763447851915,2.703,2991.1,2990.1,0.03344369]
[1763447852117,2.703,2991.1,2990.1,0.66010021]
[1763447852118,3.1765,2991.1,2990.1,0.66010021]
[1763447852314,0.4735,2991.0,2989.9,0.0625]
[1763447852740,0.1966,2990.9,2989.9,0.0625]
[1763447852942,0.1966,2990.9,2990.0,0.03344481]
[1763447853141,0.7635,2990.8,2989.1,0.2925]
[1763447853348,0.4735,2990.7,2989.1,0.2925]
[1763447853652,0.405504,2991.1,2989.1,0.2925]
[1763447853653,0.52538469,2991.2,2990.7,0.2925]
[1763447853950,0.52538469,2991.2,2990.8,0.2925]
[1763447854151,0.1966,2992.1,2991.1,0.2925]
[1763447854315,0.1966,2991.9,2990.9,0.03343475]
[1763447854519,0.1966,2991.9,2990.7,0.0625]
[1763447854721,0.1966,2991.9,2990.7,0.355]
[1763447855051,0.4735,2991.8,2990.7,0.355]
[1763447855427,0.29,2991.7,2990.7,0.355]
[1763447855857,0.29,2991.6,2990.7,0.0625]
[1763447856154,0.29,2991.5,2990.7,0.0625]
[1763447856354,0.29,2991.4,2990.8,0.32593587]
[1763447856542,0.1966,2991.9,2990.8,0.32593587]
[1763447856543,0.1966,2991.9,2991.3,0.2925]
[1763447856742,0.29,2991.8,2991.3,0.2925]
[1763447857340,0.99522805,2991.7,2990.8,0.2925]
[1763447857660,0.99522805,2991.7,2990.7,0.0625]
[1763447858225,0.29,2991.6,2990.7,0.0625]
[1763447858428,0.29,2991.5,2990.7,0.0625]
[1763447858624,0.99522805,2991.7,2990.7,0.0625]
[1763447858826,0.52532805,2991.7,2990.8,0.2925]
[1763447859153,0.29,2991.6,2990.9,0.90209537]
[1763447859356,0.7599,2991.6,2990.9,0.90209537]
[1763447859667,0.7599,2991.6,2990.6,0.66159681]
[1763447859832,0.29,2991.6,2990.6,0.0334381]
[1763447860379,0.29,2991.5,2990.6,0.3259381]
[1763447860533,0.6665,2992.1,2990.6,0.3259381]
[1763447860734,0.29,2992.0,2990.6,0.3259381]
[1763447861360,2.6007,2991.9,2990.6,0.2925]
[1763447861565,0.1867,2991.9,2990.7,0.36308928]
[1763447861868,0.1966,2992.1,2990.7,0.36308928]
[1763447862033,1.50909664,2992.9,2990.7,0.36308928]
[1763447862034,0.1966,2992.9,2992.0,0.2925]
[1763447862228,0.1966,2992.9,2992.1,0.03342134]
[1763447862229,2.704,2992.8,2992.1,0.03342134]
[1763447862435,0.6586,2993.6,2992.2,0.2925]
[1763447862732,0.6586,2993.6,2992.2,1.18834537]
[1763447862935,0.52511279,2993.3,2992.2,0.89584537]
[1763447863188,0.4699,2993.5,2991.9,0.2925]
[1763447863349,0.4699,2993.5,2992.1,0.2925]
[1763447863781,0.29,2993.4,2992.1,0.2925]
[1763447864444,0.6586,2993.6,2992.1,0.2925]
[1763447864643,0.29,2993.3,2992.2,0.03342022]
[1763447864856,0.29,2993.3,2992.1,1.66701274]
[1763447865057,0.4699,2993.2,2991.8,0.0625]
[1763447865270,0.4699,2993.2,2991.9,0.32592357]
[1763447865571,0.4699,2993.2,2991.9,0.2925]
[1763447865741,0.29,2993.1,2991.9,0.2925]
[1763447865940,0.29,2993.1,2991.8,0.72068575]
[1763447866269,0.4699,2993.0,2991.8,0.0625]
[1763447866566,0.4699,2993.0,2991.8,0.39924536]
[1763447866769,0.52516489,2992.8,2991.8,0.39924536]
[1763447867141,0.52516489,2992.8,2991.9,0.2925]
[1763447867337,0.52516489,2992.8,2992.0,0.94041509]
[1763447867540,0.4699,2993.5,2992.7,0.2925]
[1763447867742,0.29,2993.4,2992.4,2.39796092]
[1763447867942,0.29,2993.4,2992.3,8.66595373]
[1763447867943,0.29,2993.4,2992.5,1.10639147]
[1763447868171,0.7599,2993.4,2992.4,2.39796092]
[1763447868373,0.1887,2993.6,2992.4,2.39796092]
[1763447868374,0.1887,2993.6,2992.5,0.03341687]
[1763447868671,0.7599,2993.5,2992.4,2.39796092]
[1763447868858,0.7599,2993.5,2992.2,2.39796092]
[1763447869062,0.51142177,2993.4,2992.0,2.39796092]
[1763447869266,0.51142177,2993.4,2992.1,0.23979609]
[1763447869574,1.41841441,2993.4,2992.1,0.23979609]
[1763447869778,0.1867,2992.2,2991.8,1.01558967]
[1763447869950,0.29,2992.1,2991.8,0.67884431]
[1763447870157,0.29,2992.1,2991.4,2.39796092]
[1763447870363,0.7599,2992.1,2991.3,2.39796092]
[1763447870564,0.29,2992.1,2991.3,2.39796092]
[1763447871171,0.1867,2992.5,2991.4,2.72389008]
[1763447871349,2.414,2992.0,2991.5,0.27238901]
[1763447872979,0.6566,2992.5,2991.5,0.27238901]
[1763447873167,1.207,2992.0,2991.5,0.27238901]
[1763447875944,0.002,2992.1,2991.5,0.30581705]
[1763447876147,0.002,2992.1,2992.0,0.2925]
[1763447876345,1.499,2992.1,2992.0,0.32592245]
[1763447876549,1.497,2992.1,2992.0,0.2925]
[1763447876748,1.497,2992.1,2992.0,0.59079609]
[1763447876975,1.207,2992.1,2992.0,0.59079609]
[1763447877380,0.1867,2992.7,2992.0,0.59079609]
[1763447877579,0.1867,2992.7,2992.0,0.29829609]
[1763447877790,0.6566,2992.7,2992.0,0.29829609]
[1763447878193,0.29,2992.6,2992.0,0.29829609]
[1763447878888,0.6566,2992.7,2992.0,0.29829609]
[1763447878889,0.4875,2992.1,2992.0,0.29829609]
[1763447879296,0.9574,2992.1,2991.7,2.39796092]
[1763447879773,0.289,2992.0,2991.7,2.39796092]
[1763447880183,0.4699,2992.5,2991.7,2.39796092]
[1763447880692,0.289,2992.4,2991.7,2.39796092]
[1763447880991,0.4699,2992.5,2991.7,2.39796092]
[1763447881180,2.703,2992.4,2991.8,0.23979609]
[1763447881581,0.4699,2992.4,2991.8,0.23979609]
[1763447881788,2.703,2992.3,2991.8,0.23979609]
[1763447882220,0.1867,2992.7,2991.8,0.23979609]
[1763447882499,0.90699264,2993.9,2992.2,0.0625]
[1763447882500,2.703,2992.6,2992.2,0.0625]
[1763447882699,2.703,2992.6,2992.1,2.39796092]
[1763447882700,3.1729,2992.6,2992.1,2.39796092]
[1763447882860,0.4875,2992.2,2991.9,2.66173662]
[1763447883061,0.4875,2992.2,2991.9,0.2637757]
[1763447883267,0.9574,2992.2,2991.9,0.2637757]
[1763447883465,0.7589,2992.6,2991.9,0.2637757]
[1763447884092,0.4699,2992.5,2992.0,0.26617366]
[1763447884399,0.7589,2992.5,2992.0,0.26617366]
[1763447884695,0.289,2992.5,2992.0,0.26617366]
[1763447884919,0.1887,2993.6,2992.4,0.2925]
[1763447885195,0.289,2993.5,2993.2,2.39796092]
[1763447885895,0.002,2993.6,2993.1,0.1392]
[1763447885896,0.002,2993.6,2993.3,2.39796092]
[1763447886064,0.29,2993.4,2993.3,0.25371609]
[1763447886597,1.2198,2993.4,2993.2,2.39796092]
[1763447886759,0.4796,2993.3,2993.1,2.39796092]
[1763447887099,0.29,2993.4,2993.0,2.39796092]
[1763447887480,0.7402,2993.4,2992.9,2.39796092]
[1763447887660,0.29,2993.4,2993.0,0.03341129]
[1763447887864,0.002,2993.6,2993.1,0.1726]
[1763447888371,0.002,2993.6,2993.1,2.89646092]
[1763447888579,0.29,2993.5,2993.3,2.39796092]
[1763447889279,0.9298,2993.4,2993.2,2.39796092]
[1763447889491,0.9298,2993.4,2993.1,2.39796092]
[1763447889969,0.4796,2993.2,2993.0,2.39796092]
[1763447890163,0.29,2993.5,2992.9,2.39796092]
[1763447890164,0.9298,2993.1,2992.9,2.39796092]
[1763447890416,0.9298,2993.1,2992.9,0.23979609]
[1763447890596,0.002,2993.6,2992.9,2.63775701]
[1763447890770,0.29,2993.5,2993.0,2.39796092]
[1763447890969,0.7402,2993.5,2992.9,2.63775701]
[1763447891277,2.702,2993.4,2993.0,2.39796092]
[1763447891489,2.702,2993.4,2993.1,2.66507786]
[1763447891805,0.002,2993.6,2993.3,2.39796092]
[1763447891980,0.29,2993.5,2993.3,2.39796092]
[1763447892607,0.29,2993.5,2993.3,2.39896092]
[1763447892805,0.292,2993.5,2993.3,2.39896092]
[1763447893015,0.292,2993.5,2993.4,0.23989609]
[1763447893506,0.7716,2993.5,2993.3,2.39896092]
[1763447893724,0.9298,2993.4,2993.3,0.001]
[1763447895347,1.2198,2993.4,2993.3,0.001]
[1763447895483,1.26132177,2993.4,2993.3,0.001]
[1763447895679,1.26132177,2993.4,2993.0,0.001]
[1763447895881,9.14555373,2993.1,2993.0,0.001]
[1763447896222,0.4796,2993.1,2993.0,0.001]
[1763447896396,0.9298,2993.1,2993.0,0.001]
[1763447897200,1.2198,2993.1,2993.0,0.001]
[1763447897517,0.9298,2993.1,2991.6,2.39796092]
[1763447897716,0.7402,2993.0,2991.7,2.67118282]
[1763447897881,0.4502,2993.0,2991.8,2.39796092]
[1763447898086,0.97802177,2992.9,2991.7,2.63775701]
[1763447898510,0.4502,2992.8,2991.7,2.63775701]
[1763447898823,0.1963,2992.0,2991.8,0.2637757]
[1763447898986,0.4502,2992.8,2991.8,0.2637757]
[1763447898987,0.29,2991.9,2991.8,0.2637757]
[1763447899913,0.1963,2992.9,2991.8,0.9155757]
[1763447900100,0.1963,2993.1,2992.3,0.3259]
[1763447900301,0.29,2992.8,2992.4,2.46323659]
[1763447900509,0.1963,2993.1,2992.4,2.46323659]
[1763447900733,0.002,2993.5,2993.0,0.3259]
[1763447900893,0.002,2993.5,2993.2,2.40073659]
[1763447900894,0.29,2993.4,2993.2,2.40073659]
[1763447901229,1.496,2993.4,2993.3,0.26067468]
[1763447901438,2.702,2993.4,2993.3,0.26067468]
[1763447901734,4.17866354,2993.4,2993.1,2.40073659]
[1763447901884,1.30616354,2993.4,2993.0,2.40073659]
[1763447902090,0.4911,2993.1,2992.9,2.40073659]
[1763447902318,0.4911,2993.1,2992.6,2.40073659]
[1763447902490,0.4605,2993.0,2992.6,2.94055536]
[1763447902825,0.5076,2992.7,2992.4,2.40073659]
[1763447903117,0.5076,2992.7,2992.5,0.03341687]
[1763447903287,0.29,2992.6,2992.4,2.40073659]
[1763447903714,0.7505,2992.6,2992.4,2.40073659]
[1763447903920,0.1843,2992.7,2992.4,2.64081025]
[1763447904309,0.29,2992.6,2992.4,2.64081025]
[1763447905119,0.29,2992.6,2992.4,2.40073659]
[1763447905120,0.4911,2992.5,2992.4,2.40073659]
[1763447905522,0.29,2992.6,2992.4,2.40073659]
[1763447905686,0.7505,2992.6,2992.3,2.40073659]
[1763447905893,0.29,2992.6,2992.3,2.40073659]
[1763447906432,0.29,2992.6,2991.9,2.99745115]
[1763447906433,0.4911,2992.4,2992.2,2.40073659]
[1763447907394,0.9516,2992.4,2992.2,2.40073659]
[1763447908233,0.4911,2992.4,2992.2,2.40073659]
[1763447908537,0.289,2992.3,2992.2,2.40073659]
[1763447908721,0.7801,2992.3,2992.1,2.40073659]
[1763447908926,1.2406,2992.3,2992.1,2.40073659]
[1763447909102,0.4911,2992.2,2992.1,2.40073659]
[1763447909306,0.9516,2992.2,2992.0,2.40073659]
[1763447909542,0.9516,2992.2,2991.8,2.40073659]
[1763447909751,0.4911,2992.0,2991.8,2.40073659]
[1763447910542,0.6754,2991.9,2991.6,2.40073659]
[1763447910720,0.289,2991.8,2991.5,2.40073659]
[1763447910918,0.4911,2991.6,2991.5,2.40073659]
[1763447911129,1.495,2991.6,2991.4,2.40073659]
[1763447911345,0.002,2993.6,2991.5,0.3259]
[1763447911678,1.495,2992.6,2992.1,0.001]
[1763447911945,0.4165,2993.8,2992.2,0.0625]
[1763447912244,0.33052177,2993.7,2992.5,0.3699]
[1763447912537,0.002,2993.3,2992.5,0.3699]
[1763447912740,0.289,2993.2,2992.5,0.3699]
[1763447912946,0.289,2993.2,2992.5,0.3199]
[1763447913350,0.289,2993.1,2992.5,0.6398]
[1763447914120,0.289,2993.1,2993.0,0.3199]
[1763447914839,0.002,2993.3,2992.4,0.3199]
[1763447915168,0.002,2993.3,2993.2,0.4865]
[1763447915319,0.6091,2994.0,2993.2,0.4865]
[1763447915534,0.289,2993.9,2993.2,0.46709244]
[1763447916067,0.4601,2993.8,2992.8,2.99745115]
[1763447916229,0.4601,2993.8,2993.1,0.1472]
[1763447916566,0.4601,2993.8,2993.1,0.0972]
[1763447918457,0.4601,2993.8,2993.1,0.76640607]
[1763447918767,0.04152177,2993.7,2992.4,3.33543627]
[1763447918938,0.04152177,2993.7,2992.5,0.33354363]
[1763447919146,0.4601,2993.6,2992.5,0.33354363]
[1763447920230,0.4601,2993.6,2992.5,0.63204363]
[1763447920435,0.4601,2993.6,2992.6,0.2985]
[1763447920773,0.52510071,2993.7,2993.5,0.3957]
[1763447920929,0.289,2993.6,2993.5,0.3957]
[1763447921130,1.495,2993.6,2993.5,0.3957]
[1763447921565,1.495,2993.6,2993.3,2.40161941]
[1763447921566,1.9904,2993.6,2993.3,2.40161941]
[1763447922067,1.495,2993.6,2993.3,2.40161941]
[1763447922265,1.495,2993.6,2993.3,2.65150135]
[1763447922266,0.289,2993.6,2993.3,2.65150135]
[1763447922473,0.289,2993.6,2993.5,0.2985]
[1763447922682,0.289,2993.6,2993.5,2.70011941]
[1763447923372,0.289,2993.6,2993.5,2.40161941]
[1763447923891,0.4621,2994.2,2993.5,2.70011941]
[1763447924184,0.289,2994.1,2993.5,2.70011941]
[1763447924389,0.289,2994.1,2993.5,2.40161941]
[1763447924687,0.6868,2993.6,2993.5,2.40161941]
[1763447924890,0.6868,2993.6,2992.7,4.14193806]
[1763447924891,0.6868,2993.6,2993.3,2.40161941]
[1763447925089,0.289,2993.5,2993.0,2.40161941]
[1763447925255,0.289,2993.4,2993.0,2.40161941]
[1763447925458,0.4954,2993.1,2993.0,2.40161941]
[1763447925656,0.4954,2993.1,2992.7,2.40161941]
[1763447925856,0.289,2993.0,2992.6,2.40161941]
[1763447926281,0.289,2993.0,2992.6,0.24016194]
[1763447926583,0.4954,2992.7,2992.5,2.40161941]
[1763447926888,0.4954,2992.7,2992.4,2.40161941]
[1763447927044,0.6515,2992.9,2992.4,2.40161941]
[1763447927244,0.4601,2992.8,2992.4,2.40161941]
[1763447929150,0.4601,2992.8,2992.1,0.0635]
[1763447929151,0.4601,2992.8,2992.7,2.40161941]
[1763447929682,0.9555,2992.8,2992.5,0.66739603]
[1763447930065,0.4601,2992.8,2992.5,0.001]
[1763447930386,0.289,2992.7,2992.5,0.68037734]
[1763447930586,0.289,2992.7,2992.5,0.001]
[1763447930992,0.4954,2992.6,2992.5,0.001]
[1763447931290,2.9074,2992.6,2992.5,0.001]
[1763447931463,3.3675,2992.6,2992.5,0.001]
[1763447932165,0.9555,2992.6,2992.5,0.001]
[1763447932366,0.99702177,2992.6,2992.5,0.001]
[1763447933189,0.99702177,2992.6,2992.2,0.001]
[1763447933506,0.99702177,2992.6,2991.0,3.08825115]
[1763447933507,0.2355,2991.3,2991.2,0.88371941]
[1763447933722,0.2355,2991.3,2990.0,2.91626614]
[1763447933723,0.405504,2991.0,2990.0,2.91626614]
[1763447933867,0.405504,2991.0,2987.4,1.60436694]
[1763447933868,0.507004,2989.5,2987.4,1.60436694]
[1763447934066,0.90699264,2989.2,2987.3,0.4894]
[1763447934400,0.50162177,2989.1,2987.6,0.4894]
[1763447934708,0.50162177,2989.1,2988.0,3.3466938]
[1763447934859,0.405504,2989.0,2987.0,6.69568128]
[1763447935066,0.405504,2988.8,2987.7,10.04116878]
[1763447935291,0.1015,2989.9,2987.8,0.03346944]
[1763447935607,0.291,2989.8,2988.7,0.1803]
[1763447935813,0.1015,2989.9,2988.8,0.52285824]
[1763447935965,1.36709264,2990.5,2988.8,0.4894]
[1763447935966,0.291,2989.7,2988.8,0.4894]
[1763447936159,0.88295451,2992.3,2990.4,0.1803]
[1763447936359,0.291,2991.2,2989.3,0.90699264]
[1763447936563,0.04152177,2991.1,2988.8,0.4894]
[1763447936765,0.33252177,2991.2,2989.1,0.1803]
[1763447936995,0.4601,2991.1,2989.1,0.1803]
[1763447937199,0.90699264,2990.8,2989.2,3.83477668]
[1763447937398,0.90699264,2990.4,2989.2,3.83477668]
[1763447937602,0.291,2990.3,2989.3,0.40150767]
[1763447939023,0.291,2990.3,2989.4,0.4894]
[1763447940123,0.52574816,2990.1,2989.4,0.4894]
[1763447940590,0.52574816,2990.1,2989.5,0.0334504]
[1763447940959,0.52574816,2990.1,2989.4,0.4894]
[1763447941230,2.45552177,2990.0,2989.1,0.1803]
[1763447941525,2.414,2990.0,2989.2,0.4894]
[1763447942536,0.1015,2990.9,2989.2,0.4894]
[1763447942537,0.1914,2991.3,2989.5,9.16977953]
[1763447942704,0.1914,2991.5,2989.9,9.16977953]
[1763447942892,0.291,2991.4,2990.3,9.16977953]
[1763447943092,0.291,2991.4,2989.8,0.405504]
[1763447943291,0.291,2991.4,2990.0,0.1803]
[1763447943524,0.291,2991.4,2990.1,1.39639264]
[1763447943838,0.04152177,2991.3,2990.2,1.07464722]
[1763447943987,0.291,2991.4,2990.2,1.56404722]
[1763447944323,0.291,2991.4,2990.3,0.4894]
[1763447944726,0.52559582,2991.2,2990.3,0.4894]
[1763447946148,0.04152177,2991.1,2990.0,0.1803]
[1763447946364,0.04152177,2991.1,2990.1,0.4888]
[1763447946857,0.52559582,2991.2,2990.1,0.4888]
[1763447947188,0.52559582,2991.2,2989.1,0.1803]
[1763447947189,0.1464,2990.2,2989.3,0.4888]
[1763447947477,0.65982177,2991.1,2989.2,0.4888]
[1763447947478,0.04152177,2990.1,2989.2,0.4888]
[1763447947638,0.292,2990.0,2989.3,0.03345264]
[1763447947826,0.292,2990.0,2989.4,0.4888]
[1763447948719,0.88295451,2992.5,2989.4,0.4888]
[1763447948720,0.1464,2991.5,2989.9,9.16977953]
[1763447948925,0.1914,2992.9,2989.6,0.90699264]
[1763447948926,0.0815,2992.2,2991.1,0.1957]
[1763447949166,0.4719,2992.6,2991.1,0.1957]
[1763447949167,0.81759582,2991.2,2991.1,0.1957]
[1763447949519,0.81759582,2991.2,2991.1,0.6845]
[1763447949953,0.81759582,2991.2,2990.7,0.4888]
[1763447950162,0.04152177,2991.1,2990.4,0.1957]
[1763447950366,0.81759582,2991.2,2990.5,0.4888]
[1763447951258,2.414,2991.1,2990.5,0.4888]
[1763447951557,0.81759582,2991.2,2990.5,0.4888]
[1763447951933,0.04152177,2991.1,2990.4,0.1957]
[1763447952281,0.51342177,2991.1,2990.3,0.001]
[1763447952425,0.1464,2990.5,2990.3,0.001]
[1763447952627,0.291,2990.4,2990.3,0.001]
[1763447953085,0.52559582,2991.2,2990.3,9.65957953]
[1763447953300,0.33252177,2991.1,2990.4,0.96930221]
[1763447953593,0.33252177,2991.1,2990.3,0.4898]
[1763447953798,0.291,2991.1,2990.3,0.4898]
[1763447955463,0.04152177,2991.0,2990.3,0.001]
[1763447955790,0.1464,2990.4,2990.3,0.001]
[1763447956084,0.4374,2990.4,2990.3,0.001]
[1763447957188,0.291,2990.4,2990.3,0.001]
[1763447957484,0.1464,2992.0,2990.3,0.4898]
[1763447957683,0.291,2991.9,2990.4,0.96595795]
[1763447957981,0.80442177,2991.9,2990.4,0.96595795]
[1763447958190,0.52559827,2991.6,2990.5,0.4888]
[1763447959066,0.04152177,2991.5,2990.5,0.4888]
[1763447959393,0.52559827,2991.6,2990.5,0.4888]
[1763447959593,0.04152177,2991.5,2990.5,0.4888]
[1763447959797,0.52559827,2991.6,2990.5,0.4888]
[1763447960095,0.04152177,2991.5,2990.5,0.4888]
[1763447960397,0.52559827,2991.6,2990.5,0.4888]
[1763447960759,0.52559827,2991.6,2990.3,0.001]
[1763447960760,0.04152177,2991.5,2990.3,0.001]
[1763447960993,0.291,2991.4,2990.4,0.4638]
[1763447961161,2.414,2991.3,2990.4,0.4638]
[1763447961362,0.1464,2990.5,2990.3,0.001]
[1763447961587,0.291,2990.4,2990.3,0.001]
[1763447961802,0.292,2990.4,2990.3,0.001]
[1763447962988,0.291,2990.4,2990.3,0.4648]
[1763447964719,0.291,2990.4,2990.3,0.001]
[1763447966568,0.1464,2990.9,2990.3,0.001]
[1763447966815,0.291,2990.8,2990.3,0.001]
[1763447967412,0.50402177,2990.7,2990.3,0.001]
[1763447967708,0.4625,2990.7,2990.3,0.001]
[1763447969339,0.4125,2990.7,2990.3,0.001]
[1763447969540,0.405504,2990.5,2990.3,0.001]
[1763447969777,0.405504,2990.3,2990.0,0.001]
[1763447970051,1.63259256,2990.2,2990.0,0.001]
[1763447970248,0.33252177,2990.2,2990.0,0.001]
[1763447970404,1.04063805,2990.2,2990.0,0.001]
[1763447970609,0.291,2990.1,2990.0,0.001]
[1763447971227,2.707,2990.1,2990.0,0.001]
[1763447971744,0.52579395,2990.1,2990.0,0.001]
[1763447972048,0.52579395,2990.1,2990.0,0.4648]
[1763447972243,0.81679395,2990.1,2990.0,0.001]
[1763447975810,0.81679395,2990.1,2989.1,8.30800218]
[1763447976044,0.81679395,2990.1,2989.2,1.01490022]
[1763447976452,0.4912,2991.6,2989.9,8.67231218]
[1763447976652,0.291,2991.5,2990.3,8.67231218]
[1763447977014,0.002,2991.6,2990.7,8.67231218]
[1763447977353,0.002,2991.6,2991.5,0.0975]
[1763447977519,0.291,2991.5,2991.1,8.67231218]
[1763447977714,0.291,2991.5,2991.1,9.5492934]
[1763447977920,0.291,2991.5,2991.2,0.4535]
[1763447978626,0.291,2991.5,2991.3,8.70574246]
[1763447978843,0.291,2991.5,2991.3,8.67231218]
[1763447979046,0.291,2991.5,2991.4,0.4535]
[1763447979232,0.002,2991.6,2991.4,1.36049264]
[1763447979422,0.002,2991.6,2991.5,1.00328048]
[1763447979622,0.4892,2993.0,2991.5,1.45678048]
[1763447979860,0.4892,2993.0,2991.6,0.4535]
[1763447980359,0.04152177,2992.8,2991.6,0.4535]
[1763447980658,0.33252177,2992.7,2991.3,8.67231218]
[1763447980959,0.33252177,2992.7,2991.3,1.38449122]
[1763447981136,2.9052,2992.6,2991.3,0.4535]
[1763447981322,0.04152177,2992.5,2991.3,0.4535]
[1763447981526,0.53072177,2992.5,2991.1,0.1841]
[1763447981923,0.44702577,2992.4,2990.5,0.4535]
[1763447982351,0.4892,2992.3,2990.5,0.4535]
[1763447982557,0.04152177,2992.2,2990.5,0.4535]
[1763447982922,0.4892,2992.1,2990.5,0.4535]